Cogmind - Beta 11.1 @@@ ROGUE MODE // 2022.06.05 @ 17:08:51 Player: ktur Result: Destroyed by H-61 Shepherd with Heavy Assault Cannon Performance ------------- Evolutions (3) 1500 Regions Visited (6) 1200 Robots Destroyed (96) 480 Value Destroyed (3121) 3121 Prototype IDs (34) 680 Alien Tech Used (0) 0 Bonus (705) 705 TOTAL SCORE: 7686 Bonus ------- High Alert Combat Kills 296 Follower Combat Kills 219 Aligned with FarCom 300 Friendly Fire -110 Cogmind --------- Core Integrity 0/700 Matter 215/300 Energy 136/1300 System Corruption 2% Temperature Cool (0) Movement Treading (320) Ox2 Location -7/Factory Parts ------- > --- POWER (1) -------- (None) > --- PROPULSION (2) --- Light Treads Medium Treads > --- UTILITY (7) ------ Huge Storage Unit Improved Energy Well Improved Energy Well Improved Energy Well Advanced Targeting Computer > --- WEAPON (3) ------- Improved Heavy Laser Tri-rail Accelerator > --- INVENTORY (25) --- Enhanced Armored Leg Experimental Flexi-carbon Leg Modified TNC Improved EM Pulse Cannon Tri-rail Accelerator Tri-rail Accelerator Tesla Bomb Launcher Peak State ------------ > --- POWER ------------ (None) > --- PROPULSION ------- Light Treads Medium Treads > --- UTILITY ---------- Huge Storage Unit Improved Energy Well Improved Energy Well Improved Energy Well Improved Energy Well Advanced Targeting Computer Hardened Medium Armor Plating > --- WEAPON ----------- Improved Heavy Laser Tri-rail Accelerator > --- INVENTORY -------- Enhanced Armored Leg Experimental Flexi-carbon Leg Modified TNC Improved EM Pulse Cannon Tri-rail Accelerator Tri-rail Accelerator Tesla Bomb Launcher [Rating: 66] Favorites ----------- Power Ion Engine Engine Ion Engine Power Core Light Nuclear Core Propulsion Light Treads Treads Light Treads Leg Enhanced Armored Leg Wheel Compact Wheel Flight Unit Cooled VTOL Module Utility Advanced Targeting Computer Device Improved Heat Sink Storage Large Storage Unit Processor Advanced Targeting Computer Protection Hardened Medium Armor Plating Weapon Enhanced Autogun Energy Gun Spread Laser Energy Cannon Beam Cannon Ballistic Gun Enhanced Autogun Ballistic Cannon Tri-rail Accelerator Launcher Grenade Launcher Impact Weapon Power Maul Slashing Weapon Great Axe Build | -11 -10 -10 -10 -9 -8 -7 ------- Run | Scr Mat Min Exi Min Mat Fac Slots Evolved 6 | . . . . . 4 2 Power . | . . . . . . . Propulsion . | . . . . . . . Utility 5 | . . . . . 4 1 Weapon 1 | . . . . . . 1 Parts Attached 95 | 6 12 7 . 3 23 44 Power 4 | 1 . . . . 1 2 Engine 3 | 1 . . . . . 2 Core 1 | . . . . . 1 . Reactor . | . . . . . . . Propulsion 22 | 2 4 2 . . 4 10 Treads 19 | 2 4 1 . . 4 8 Leg 1 | . . . . . . 1 Wheel 1 | . . 1 . . . . Hover . | . . . . . . . Flight 1 | . . . . . . 1 Utility 32 | 1 2 1 . 1 11 16 Device 7 | . 1 1 . . 1 4 Storage 8 | 1 1 . . . . 6 Processor 6 | . . . . . 5 1 Hackware . | . . . . . . . Protection 11 | . . . . 1 5 5 Artifact . | . . . . . . . Weapon 37 | 2 6 4 . 2 7 16 Energy Gun 13 | 1 3 2 . . 4 3 Energy Cannon 3 | . 2 . . . . 1 Ballistic Gun 13 | 1 1 1 . 2 3 5 Ballistic Cannon 2 | . . . . . . 2 Launcher 4 | . . 1 . . . 3 Special Weapon . | . . . . . . . Impact Weapon 1 | . . . . . . 1 Slashing Weapon 1 | . . . . . . 1 Piercing Weapon . | . . . . . . . Special Melee Weapon . | . . . . . . . Unidentified Prototypes 9 | . . . . . 1 8 Parts Lost 27 | . . 2 . . 1 24 Power 3 | . . . . . . 3 Propulsion 7 | . . 1 . . 1 5 Utility 9 | . . 1 . . . 8 Weapon 8 | . . . . . . 8 Highest Loss Streak 14 | . . 2 . . 1 14 To Critical Strikes . | . . . . . . . Average Slot Usage (%) 95 | . 97 98 100 100 98 88 Engine 7 | . 14 14 14 14 5 . Core 2 | . . . . . 3 5 Treads 17 | . 27 22 14 14 13 14 Wheel 3 | . . 5 14 14 3 . Device 9 | . 12 12 14 . 7 10 Storage 10 | . 14 14 14 14 9 7 Processor 8 | . . . . . 19 13 Protection 8 | . . . . 13 16 11 Energy Gun 9 | . 10 24 28 1 14 . Energy Cannon 1 | . 5 . . . . . Ballistic Gun 12 | . 12 1 . 26 3 18 Naked Turns . | . . . . . . . Heaviest Build 124 | 12 32 32 32 34 48 124 Greatest Support 48 | 40 40 40 16 16 40 48 Greatest Overweight (x) 10 | . 10 1 1 2 2 3 Average Overweight (x) . | . . . 1 1 1 1 Largest Inventory Capacity 25 | 8 15 15 15 15 15 25 Average Capacity 15 | 6 10 15 15 15 15 19 Most Carried 25 | 6 15 15 15 15 15 25 Average Carried 14 | 3 9 14 15 15 14 18 Final Capacity 25 | 8 15 15 15 15 15 25 Final Carried 15 | 6 15 15 15 15 15 9 Class Distribution -------------------- 67% | Mutant 11% | Gunner 9% | Scavenger-Mutant 8% | Scavenger-Tank Dominant Class ---------------- Mutant | -10/Materials Mutant | -10/Mines Mutant | -10/Exiles Mutant | -9/Mines Mutant | -8/Materials Gunner | -7/Factory Resources | -11 -10 -10 -10 -9 -8 -7 ----------- Run | Scr Mat Min Exi Min Mat Fac Matter Collected 2275 | 258 174 336 . 30 255 1222 Remotely . | . . . . . . . Salvage Created 3020 | . 529 29 . . 526 1936 Parts 186 | . 36 . . . 26 124 Haulers Intercepted 4 | . 1 . . . 2 1 Recyclers Shooed 2 | . . 1 . . . 1 Parts Field Recycled . | . . . . . . . Retrieved Matter . | . . . . . . . Parts Self-Destructed . | . . . . . . . Prevented . | . . . . . . . Kills | -11 -10 -10 -10 -9 -8 -7 ------- Run | Scr Mat Min Exi Min Mat Fac Combat Hostiles Destroyed 78 | . 12 14 . . 10 42 Guns 49 | . 11 4 . . 10 24 Cannons 11 | . 1 . . . . 10 AOE 17 | . . 10 . . . 7 Classes Destroyed 17 | . 6 2 . . 3 6 Worker 7 | . 1 . . . 2 4 Builder 8 | . . . . . . 8 Tunneler 2 | . . . . . 1 1 Hauler 4 | . 1 . . . 2 1 Recycler 5 | . 1 . . . 2 2 Mechanic 1 | . . . . . . 1 Operator 1 | . 1 . . . . . Watcher 2 | . . . . . . 2 Swarmer 11 | . 3 . . . 3 5 Grunt 31 | . 9 . . . 5 17 Protector 1 | . . . . . . 1 Sentry 4 | . . . . . 1 3 Demolisher 1 | . . 1 . . . . Specialist 4 | . . . . . . 4 Hunter 7 | . . . . . 1 6 Programmer 6 | . . . . . . 6 Assembled 13 | . . 13 . . . . Thug 1 | . . . . . 1 . Best Kill Streak 23 | . 4 11 . . 3 23 Combat Bots Only 11 | . 3 11 . . 3 10 Max Kills in Single Turn 5 | . 1 2 . . 1 5 Gunslinging . | . . . . . . . Exploded 3 | . . 2 . . . 3 Melee . | . . . . . . . Uniques/NPCs Destroyed . | . . . . . . . Combat | -11 -10 -10 -10 -9 -8 -7 -------- Run | Scr Mat Min Exi Min Mat Fac Damage Taken 6428 | . 420 526 . . 313 5169 Core 967 | . 81 141 . . 21 724 Absorbed by Shields . | . . . . . . . Regen/Repaired (Parts) 331 | . 105 . . . 226 . Core Remaining (%) 69 | 100 . . . 11 96 . Volleys Fired 241 | . 53 23 . . 32 133 Largest 3 | . 2 2 . . 2 3 Hottest 135 | . 85 130 . . 130 135 Shots Fired 434 | . 102 34 . . 64 234 Gun 389 | . 100 22 . . 64 203 Cannon 26 | . 2 . . . . 24 Launcher 19 | . . 12 . . . 7 Special . | . . . . . . . Kinetic 257 | . 53 . . . 8 196 Thermal 157 | . 49 22 . . 56 30 Explosive 19 | . . 12 . . . 7 Electromagnetic 1 | . . . . . . 1 Robot Hit Streak 22 | . 15 8 . . 20 22 Robot Miss Streak 10 | . 4 10 . . 4 4 Penetration Max . | . . . . . . . Secondary Targets 3 | . . . . . 1 2 Max Gunslinging Chain 1 | . . . . . 1 1 Shots Hit Robots 307 | . 64 18 . . 57 168 Core Hits 268 | . 33 43 . . 83 109 Critical Kills 1 | . . . . . . 1 Critical Parts Destroyed 1 | . . . . . 1 . Critical Strikes 5 | . . . . . 1 4 Burn 2 | . . . . . . 2 Destroy 2 | . . . . . 1 1 Blast 1 | . . . . . . 1 Melee Attacks 9 | . . . . . . 9 Impact 3 | . . . . . . 3 Slashing 6 | . . . . . . 6 Piercing . | . . . . . . . Sneak Attacks . | . . . . . . . Combat Hostiles . | . . . . . . . Follow-up Attacks . | . . . . . . . Damage Inflicted 8755 | . 682 884 . . 941 6248 Guns 4585 | . 624 232 . . 928 2801 Cannons 1268 | . 36 . . . . 1232 Explosions 2662 | . . 649 . . . 2013 Melee 153 | . . . . . . 153 Ramming 87 | . 22 3 . . 13 49 Kinetic 3691 | . 237 . . . 141 3313 Thermal 2845 | . 423 232 . . 787 1403 Explosive 1948 | . . 649 . . . 1299 Electromagnetic 31 | . . . . . . 31 Impact 153 | . . . . . . 153 Slashing . | . . . . . . . Piercing . | . . . . . . . Highest Corruption 2 | . . . . . . 2 Average Corruption 1 | . . . . . . 1 Corruption Purged 2 | . . . . . . 2 Corruption Blocked . | . . . . . . . Effects 15 | . . . . . . 15 Message Errors 2 | . . . . . . 2 Matter Fused 5 | . . . . . . 5 Heat Flow Errors 1 | . . . . . . 1 Energy Discharges 2 | . . . . . . 2 Data Loss (minor) 1 | . . . . . . 1 Misfires 2 | . . . . . . 2 Alerts 1 | . . . . . . 1 Weapon Failures 1 | . . . . . . 1 Overload Shots . | . . . . . . . Overflow Damage 141 | . . 41 . . . 100 Projectiles 20 | . . . . . . 20 Explosions 100 | . . 41 . . . 59 Melee 21 | . . . . . . 21 Knockbacks 7 | . . . . . . 7 Impact 1 | . . . . . . 1 Kinetic 6 | . . . . . . 6 Secondary . | . . . . . . . Self-Inflicted Damage 43 | . . 43 . . . . Shots 2 | . . 2 . . . . Rammed 15 | . 6 1 . . 1 7 Targets Rammed 17 | . 7 1 . . 2 7 Kicked . | . . . . . . . Crushed 2 | . 1 . . . 1 . Highest Temperature 499 | . 147 137 . . 153 499 Average Temperature 69 | . 63 44 . . 58 81 Received Heat Transfer 1959 | . 189 . . . 108 1662 Effects 5 | . . . . . . 5 Short Circuit 1 | . . . . . . 1 Damage (major) 4 | . . . . . . 4 Siege Activations . | . . . . . . . Robots Corrupted . | . . . . . . . Combat Hostiles . | . . . . . . . Parts Fried . | . . . . . . . Impact Corruptions 2 | . . . . . . 2 Robots Melted . | . . . . . . . Combat Hostiles . | . . . . . . . Parts Melted 5 | . . . . . 1 4 Heat Transferred 3788 | . 884 285 . . 1010 1609 Parts Sabotaged . | . . . . . . . Parts Stolen . | . . . . . . . Parts Stripped . | . . . . . . . Power Chain Reactions . | . . . . . . . Missiles Intercepted . | . . . . . . . Alert | -11 -10 -10 -10 -9 -8 -7 ------- Run | Scr Mat Min Exi Min Mat Fac Peak Influence 795 | . 220 117 . 78 147 795 Initial 29 | . . 19 . . 29 . Average 72 | . 65 49 . 22 61 109 Maximum Alert Level 3 | . 1 . . . . 3 Low Security (%) 92 | 100 91 100 . 100 100 82 Level 1 2 | . 8 . . . . 2 Level 2 4 | . . . . . . 14 Level 3 . | . . . . . . . Level 4 . | . . . . . . . Level 5 . | . . . . . . . High Security . | . . . . . . . Max Security . | . . . . . . . Squads Dispatched 25 | . 4 . . 1 4 16 Investigation 7 | . 3 . . . 3 1 Extermination 4 | . . . . . . 4 Reinforcement 10 | . 1 . . . 1 8 Assault 1 | . . . . 1 . . Garrison 3 | . . . . . . 3 Intercept . | . . . . . . . Searches Triggered . | . . . . . . . Construction Impeded 3 | . . . . . . 3 Haulers Reinforced 1 | . . . . . . 1 Active Scanning Responses . | . . . . . . . Cargo Convoy Interrupts 1 | . . . . . . 1 Stealth | -11 -10 -10 -10 -9 -8 -7 --------- Run | Scr Mat Min Exi Min Mat Fac Distress Signals 6 | . 1 . . . 3 2 Communications Jammed . | . . . . . . . Distress Signals . | . . . . . . . Times Spotted 127 | . 25 15 . 1 21 65 Peak Tracking Total 10 | . 3 5 . 1 3 10 Tactical Retreats 2 | . . 1 . . . 1 Traps | -11 -10 -10 -10 -9 -8 -7 ------- Run | Scr Mat Min Exi Min Mat Fac Traps Triggered 5 | . 2 . . . 2 1 Indirectly . | . . . . . . . Trap Hack Attempts . | . . . . . . . Triggered . | . . . . . . . Disarmed . | . . . . . . . Reprogrammed . | . . . . . . . Reused . | . . . . . . . Traps Extracted . | . . . . . . . Installed . | . . . . . . . Triggered . | . . . . . . . Machines | -11 -10 -10 -10 -9 -8 -7 ---------- Run | Scr Mat Min Exi Min Mat Fac Machines Disabled 4 | . . . . . . 4 Max in Single Turn 4 | . . . . . . 4 Machines Sabotaged . | . . . . . . . Garrisons Compromised . | . . . . . . . Overloaded Fab Kills . | . . . . . . . Hacking | -11 -10 -10 -10 -9 -8 -7 --------- Run | Scr Mat Min Exi Min Mat Fac Machines Accessed 24 | . 11 . 2 . 8 3 Terminals 13 | . 8 . . . 5 . Fabricators 1 | . . . . . . 1 Repair Stations 3 | . 1 . . . 2 . Recycling Units 4 | . 2 . . . 1 1 Scanalyzers . | . . . . . . . Garrison Access 1 | . . . . . . 1 Total Hacks 54 | . 26 . 2 . 21 5 Successful 33 | . 17 . 2 . 11 3 Failed 21 | . 9 . . . 10 2 Catastrophic 5 | . 2 . . . 2 1 Database Lockouts . | . . . . . . . Manual 28 | . 19 . 1 . 8 . Terminals 33 | . 22 . . . 11 . Fabricators 2 | . . . . . . 2 Repair Stations 10 | . 2 . . . 8 . Recycling Units 5 | . 2 . . . 2 1 Scanalyzers . | . . . . . . . Garrison Access 2 | . . . . . . 2 Terminal Hacks 16 | . 11 . 2 . 3 . Record 1 | . . . 1 . . . Part Schematic 3 | . 3 . . . . . Robot Analysis 2 | . 2 . . . . . Prototype ID Bank 1 | . 1 . . . . . Repair Station Index 1 | . . . . . 1 . Alert Level 1 | . 1 . . . . . Unreport Threat 1 | . . . . . 1 . Locate Traps 2 | . 2 . . . . . Recall Investigation 2 | . 1 . . . 1 . Hauler Manifests 1 | . 1 . . . . . EX-Prototype ID Bank 1 | . . . 1 . . . Fabricator Hacks 2 | . . . . . . 2 Load Schematic 1 | . . . . . . 1 Build 1 | . . . . . . 1 Repair Station Hacks 9 | . 2 . . . 7 . Scan Component 5 | . 1 . . . 4 . Repair 4 | . 1 . . . 3 . Recycling Unit Hacks 2 | . . . . . 1 1 Retrieve Components 2 | . . . . . 1 1 Scanalyzer . | . . . . . . . Garrison Access Hacks . | . . . . . . . Unauthorized Hacks 4 | . 4 . . . . . Terminals 2 | . 2 . . . . . Botnet 1 | . 1 . . . . . Operators 1 | . 1 . . . . . Fabricators . | . . . . . . . Repair Stations . | . . . . . . . Recycling Units 2 | . 2 . . . . . Tunnel 2 | . 2 . . . . . Scanalyzers . | . . . . . . . Garrison Access . | . . . . . . . Data Cores Recovered . | . . . . . . . Used . | . . . . . . . Hacking Detections 19 | . 9 . . . 8 2 Full Trace Events 2 | . . . . . 1 1 Feedback Events . | . . . . . . . Feedback Blocked . | . . . . . . . Robot Schematics Acquired . | . . . . . . . Robots Built . | . . . . . . . Authchips . | . . . . . . . Time . | . . . . . . . Total Robot Build Rating . | . . . . . . . Part Schematics Acquired 2 | . 2 . . . . . Parts Built 1 | . . . . . . 1 Authchips . | . . . . . . . Time 51 | . . . . . . 51 Total Part Build Rating 1 | . . . . . . 1 Parts Repaired 4 | . 1 . . . 3 . Time 116 | . 26 . . . 90 . Parts Recycled . | . . . . . . . Recycled Matter . | . . . . . . . Retrieved Matter . | . . . . . . . Retrieved Components 16 | . . . . . 9 7 Parts Scanalyzed . | . . . . . . . Part Schematics Acquired . | . . . . . . . Parts Damaged . | . . . . . . . Bothacking | -11 -10 -10 -10 -9 -8 -7 ------------ Run | Scr Mat Min Exi Min Mat Fac Used RIF Installer . | . . . . . . . Robots Hacked . | . . . . . . . Non-combat . | . . . . . . . Combat . | . . . . . . . Robot Hacks Applied . | . . . . . . . Relay Couplers Released . | . . . . . . . Fabnet Peak Effective % . | . . . . . . . Robots Rewired . | . . . . . . . Allies Hacked . | . . . . . . . Hacks Repelled . | . . . . . . . Allies | -11 -10 -10 -10 -9 -8 -7 -------- Run | Scr Mat Min Exi Min Mat Fac Total Allies 4 | . . 1 . 3 . . Largest Group 3 | . . 1 . 3 3 . Highest-Rated Group 71 | . . 31 . 71 71 . Highest-Rated Ally 31 | . . 31 . 31 31 . Total Orders . | . . . . . . . Ally Attacks 50 | . . 2 . 18 30 . Total Damage 737 | . . 41 . 271 425 . Kills 13 | . . . . 6 7 . Allies Corrupted . | . . . . . . . Allies Melted . | . . . . . . . Intel | -11 -10 -10 -10 -9 -8 -7 ------- Run | Scr Mat Min Exi Min Mat Fac Robot Analysis Total 2 | . 2 . . . . . Derelict Logs Recovered 3 | . . 2 . 1 . . Drone Launches . | . . . . . . . Drone Recoveries . | . . . . . . . Exploration | -11 -10 -10 -10 -9 -8 -7 ------------- Run | Scr Mat Min Exi Min Mat Fac Turns Passed 7013 | 84 1512 647 289 647 1605 2229 Spaces Moved 3092 | 51 770 398 251 457 574 591 Core 11 | 10 1 . . . . . Treads 2058 | 41 769 234 . . 430 584 Legs . | . . . . . . . Wheels 1016 | . . 164 251 457 144 . Hover . | . . . . . . . Flight 7 | . . . . . . 7 Fastest Speed 50 | 50 160 115 115 115 130 160 Average Speed 183 | 138 160 141 115 129 224 277 Slowest Speed 550 | 160 550 160 115 130 320 330 Overloaded Moves . | . . . . . . . Propulsion Burnouts . | . . . . . . . Robots Hopped . | . . . . . . . Cave-ins Triggered . | . . . . . . . Exploration Rate (%) 57 | 3 99 84 61 94 43 19 Regions Visited 6 Branch Regions 3 Pre-discovered Areas 4 | . 2 1 1 . . . Known Exits Taken . | . . . . . . . Unknown Exits Taken 6 | 1 1 1 1 1 1 . Scrap Searched 3 | . . 1 . 2 . . Spaces Dug 69 | . . 63 . . . 6 Terrain Destroyed 151 | . . 93 . . . 58 Melee 6 | . . . . . . 6 Projectile 13 | . . . . . . 13 AOE 132 | . . 93 . . . 39 Terrain Rammed . | . . . . . . . Walls Destroyed . | . . . . . . . Machines Disabled . | . . . . . . . Actions | -11 -10 -10 -10 -9 -8 -7 --------- Run | Scr Mat Min Exi Min Mat Fac Total 4085 | 62 953 444 252 516 837 1021 Wait 497 | . 81 15 . 50 161 190 Move 3086 | 50 769 397 250 456 573 591 Hop . | . . . . . . . Pick Up 73 | 6 17 1 1 2 18 28 Fast Attach 43 | 6 8 1 . 2 13 13 Attach 26 | . 1 1 . . 5 19 Detach 6 | . 1 . . 1 2 2 Swap 26 | . 3 5 . 1 5 12 Drop 61 | . 13 . 1 4 26 17 Fire 241 | . 53 23 . . 32 133 Melee 9 | . . . . . . 9 Ram . | . . . . . . . Kick . | . . . . . . . Crush 17 | . 7 1 . . 2 7 Escape Stasis . | . . . . . . . Rewire . | . . . . . . . Trap . | . . . . . . . Miscellaneous . | . . . . . . . Route ------- -11/Scrapyard -10/Materials (discovered 5 exits: [*Mat x3] / [*Min x2]) -10/Mines (discovered 2 exits: [*Mat] / *Exi) -10/Exiles -9/Mines -8/Materials (discovered 2 exits: *Fac / Sto) -7/Factory (discovered 1 exit: [*Fac]) History --------- Turn | Location | Event 11 | -11/Scrapyard | Discovered new exit (range 15) 85 | -11/Scrapyard | Entered Materials 311 | -10/Materials | Build established: Mutant 646 | -10/Materials | Discovered new exit (range 12) 813 | -10/Materials | Discovered new exit (range 12) 933 | -10/Materials | Discovered new exit (range 7) 1117 | -10/Materials | Discovered new exit (range 6) 1206 | -10/Materials | Repaired Lgt. Treads 1233 | -10/Materials | Discovered new exit (range 16) 1597 | -10/Materials | Entered Mines 1612 | -10/Mines | Met a Derelict bent on vengeance 1900 | -10/Mines | Discovered new exit (range 8) 1903 | -10/Mines | Received a Mining Laser from a helpful Derelict 1941 | -10/Mines | A weapon hastily lodged in a ceiling crevice suddenly fell to the ground 1960 | -10/Mines | Assembled infested the area 1996 | -10/Mines | Core integrity fell below 50% 2048 | -10/Mines | Destroyed 11 combat bots 2051 | -10/Mines | Learned location of 1 exit from Materials 2201 | -10/Mines | Core integrity fell below 20% 2238 | -10/Mines | Deemed a non-threat by the Exiles lab entrance 2239 | -10/Mines | Discovered new exit (range 5) 2244 | -10/Mines | Entered Exiles 2273 | -10/Exiles | Met 8R-AWN 2292 | -10/Exiles | Met EX-HEX 2336 | -10/Exiles | Met EX-DEC 2342 | -10/Exiles | Learned location of Zion (-6) 2362 | -10/Exiles | Met EX-BIN 2380 | -10/Exiles | Aligned with FarCom system 2381 | -10/Exiles | Given EX-Vault access code 2408 | -10/Exiles | Opened EX-Vault 2415 | -10/Exiles | Found Modified TNC 2440 | -10/Exiles | Warned to stay clear of 0b10 Research branches 2516 | -10/Exiles | Discovered new exit (range 15) 2533 | -10/Exiles | Left Exiles lab with Modified TNC 2533 | -10/Exiles | Entered Mines 3170 | -9/Mines | Discovered new exit (range 5) 3173 | -9/Mines | Met a Derelict testing a Signal Generator 3175 | -9/Mines | Learned 2 Materials zone layouts 3180 | -9/Mines | Entered Materials 3180 | -8/Materials | Accompanied by 3 allies 3180 | -8/Materials | Evolved 4 slots: Utility x4 3181 | -8/Materials | Identified exit to Storage 3185 | -8/Materials | Led the pair of lost Derelicts to an unsafe place 4191 | -8/Materials | Repaired Lgt. Treads 4428 | -8/Materials | Build established: Scavenger-Mutant 4433 | -8/Materials | Repaired Hrd. Medium Armor Plating 4461 | -8/Materials | Repaired Lgt. Treads 4761 | -8/Materials | Discovered new exit (range 10) 4785 | -8/Materials | Entered Factory 4785 | -7/Factory | Evolved 2 slots: Utility x1, Weapon x1 4875 | -7/Factory | Fabricated Huge Storage Unit (x1) 5076 | -7/Factory | Build established: Scavenger-Tank 6219 | -7/Factory | Discovered new exit (range 10) 6395 | -7/Factory | Build established: Gunner 6523 | -7/Factory | Garrison activated, responded to threat 6619 | -7/Factory | Cargo convoy interrupted 6687 | -7/Factory | Destroyed 10 combat bots 6750 | -7/Factory | Lost 14 parts (1p1n6u6w) 6785 | -7/Factory | Core integrity fell below 50% 6809 | -7/Factory | Destroyed 7 combat bots 6820 | -7/Factory | Found Prototype Launcher 6820 | -7/Factory | Identified Tesla Bomb Launcher 6821 | -7/Factory | Lost 4 parts (1p2n1w) 6825 | -7/Factory | Core integrity fell below 20% 6923 | -7/Factory | Lost 3 parts (1p1n1u) 6997 | -7/Factory | Build established: Mutant 7014 | -7/Factory | Destroyed by H-61 Shepherd with Heavy Assault Cannon Last Messages --------------- 07001_ C-30 ARC bursts open, deploying its payload. 07001_ S-27 Virus unfolds itself. 07002_ S-27 Virus knocked back. 07003_ Penetrated by Slug. 07004_ K-01 Serf collects debris. 07006_ H-55 Commando destroyed. 07006_ K-01 Serf destroyed. 07007_ ALERT: Construction progress impeded, dispatching reinforcements to local area. 07008_ S-27 Virus destroyed. 07009_ K-01 Serf collects debris. 07010_ Destroyed VTOL Module. 07010_ S-27 Virus knocked back. 07012_ S-27 Virus destroyed. 07013_ K-01 Serf collects debris. 07014_ H-61 Shepherd calls for reinforcements. 07014_ ALERT: Hostile activity reported, dispatching reinforcements to area. 07014_ Penetrated by Slug. 07014_ Imp. Energy Well blasted off. Map ----- +----------------------------------------------------+ | ?????????????????????????????????????????????????? | | ?????????????????????????????????????????????????? | | ?????????????????????????????????????????????????? | | ???????????????????????????????????????????????### | | ???????????????????????????????????????????????# | | ???????????????????????????????????????????????# | | ???????????????????????????????????????????????# | | ???????????????????????????????????????????????# | | ???????????????????????????????????????????????# " | | ???????????????????????????????????????????????# " | | ???????????????????????????????????????????????+ " | | ??????????????????? ???????????????????????????# | | ????????????????? ?????????????????????? # " | | ?????????????? ?????????????????????? # " | | ???????? ?? ?????????????????????? # " | | ???????? # ????????????????????? #?? | | ??????? ##########????????????????????# #?? | | ??????? uu ???i????????????????# #?? | | ??????# *% #????????????????????# ### | | ??????# =%[ #??????????#########?# # | | ??????# % s% !#??????????# #?# # | | ??????# = ;#####?????# """"" #?# # | | ??????? "*%%%[ a[=%w !!%=#???### """"" #?# # | | ???????? "R=[ %%%!%% =%=%#???# +^""" #?# # | | ??????# " %! *%=!!/!*== %##??# #%==[ #?# # | | ??????# %%k%%=% !u|[== @;#### ##x######## # | | ??????# %=%%k%*!%%u%=[ %H!= xx %% + | | ??????# #########+;+####+##### x # | | ??????# ??????##=[=!%*% %!==#??#= ### | | ????????????????##*==*!*[===%%##?# g | | ????????????????## %=!===![= ##?####### | | ????????????????## =!%[=*%% # #?????# | | ????????????????## [! # ##????##g######### | | ?????????????????# # #????#% #######= | | ?????????????????#" # #????# H + | | ?????????????????#"" # #????# ####* | | ?????????????????#"T # ######## #??# | | ?????????????????#"" # # + #??# | | ?????????????????#"" # ## # ####??# | | ?????????????????? # ?# """ # #?????# | | ??????????????????#############??# """ # #?????# | | ?????????????????????????????????# """ # #?????# | | ?????????????????????????????????# # #?????## | | ?????????????????????????????????######## #??????? | | ????????????????????????????????????????# #??????? | | ????????????????????????????????????????# #??????? | | ????????????????????????????????????????# #??????? | | ????????????????????????????????????????# #??????? | | ????????????????????????????????????????# #??????? | | ????????????????????????????????????????# #??????? | +----------------------------------------------------+ Best States ------------- Heat Dissipation 48 Energy Generation 16 Energy Capacity 1700 Matter Stores 300 Matter Capacity 300 Sight Range 16 Terrain Scan Density 10 Armor Coverage 675 Evasion (%) 40 Targeting Accuracy 32 Recoil Reduction 2 Kinecelleration 30 Item Schematics ----------------- Huge Storage Unit | -10/Materials | Hacked Hcp. Storage Unit | -10/Materials | Hacked Robot Schematics ------------------ None Fabricated ------------ Huge Storage Unit | x1 | -7/Factory Alien Tech Used ----------------- None Achievements -------------- None Challenges ------------ None Game ------ Seed FissionBattleSuperbattery Manual? 0 Play Time 00:37:01 Cumulative 465.8 hours Start 2022.06.05 @ 16:34:54 End 2022.06.05 @ 17:08:51 Sessions 1 Manual Loads 0 Difficulty Rogue Special Mode None Game No. 440 Rogue 440 Adventurer 0 Explorer 0 Win Type - Total 22 Types 13/2/4/2/0/0/0/1/0 Lore% 94 Gallery% 92 Achievement% 78 Wizard Run 0 Options --------- ASCII 0 Keyboard 0 Movement Arrows Keybinds 0 Fullscreen 1 Font 18/Smallcaps Map View 76x50 Tactical HUD 1 Map Filters NONE Filters NONE Steam 1 RUN: 92608ed6-e9bc-4d62-90e6-d3bf08cbfc84